Cogmind - Beta 11 X7 @@@ ROGUE MODE // 2021.10.02 @ 03:22:14 Player: LU-1G1 Result: Destroyed by Y-45 Defender with Beam Rifle Performance ------------- Evolutions (1) 500 Regions Visited (2) 400 Robots Destroyed (30) 150 Value Destroyed (595) 595 Prototype IDs (0) 0 Alien Tech Used (0) 0 Bonus (0) 0 TOTAL SCORE: 1645 Bonus ------- None Cogmind --------- Core Integrity 0/400 Matter 186/300 Energy 100/100 System Corruption 0% Temperature Cool (9) Movement Core (1000) Ox19 Location -9/Materials Parts ------- > --- POWER (1) -------- (None) > --- PROPULSION (4) --- (None) > --- UTILITY (2) ------ Large Storage Unit High-capacity Storage Unit > --- WEAPON (2) ------- (None) > --- INVENTORY (20) --- Light Ion Engine Hover Unit Hover Unit Small Storage Unit Structural Scanner Sensor Array Seismic Analyzer Targeting Computer Peak State ------------ > --- POWER ------------ Ion Engine > --- PROPULSION ------- Light Treads Light Treads > --- UTILITY ---------- Small Storage Unit Improved Terrain Scanner > --- WEAPON ----------- Assault Rifle Assault Rifle > --- INVENTORY -------- Light Ion Engine Aluminum Leg Aluminum Leg Wheel Wheel Assault Rifle [Rating: 9] Favorites ----------- Power Ion Engine Engine Ion Engine Propulsion Aluminum Leg Treads Light Treads Leg Aluminum Leg Wheel Wheel Utility High-capacity Storage Unit Device Improved Terrain Scanner Storage High-capacity Storage Unit Weapon Assault Rifle Ballistic Gun Assault Rifle Launcher Grenade Launcher Build | -11 -10 -9 ------- Run | Scr Mat Mat Slots Evolved 2 | . . 2 Power . | . . . Propulsion 2 | . . 2 Utility . | . . . Weapon . | . . . Parts Attached 16 | 7 4 5 Power 1 | 1 . . Engine 1 | 1 . . Core . | . . . Reactor . | . . . Propulsion 6 | 2 2 2 Treads 2 | 2 . . Leg 2 | . 2 . Wheel 2 | . . 2 Hover . | . . . Flight . | . . . Utility 4 | 2 1 1 Device 1 | 1 . . Storage 3 | 1 1 1 Processor . | . . . Hackware . | . . . Protection . | . . . Artifact . | . . . Weapon 5 | 2 1 2 Energy Gun . | . . . Energy Cannon . | . . . Ballistic Gun 4 | 2 1 1 Ballistic Cannon . | . . . Launcher 1 | . . 1 Special Weapon . | . . . Impact Weapon . | . . . Slashing Weapon . | . . . Piercing Weapon . | . . . Special Melee Weapon . | . . . Unidentified Prototypes . | . . . Parts Lost 13 | . 6 7 Power 1 | . 1 . Propulsion 6 | . 2 4 Utility 1 | . 1 . Weapon 5 | . 2 3 Highest Loss Streak 7 | . 4 7 Average Slot Usage (%) 74 | . 76 62 Engine 3 | . 3 . Treads 6 | . 7 . Leg 19 | . 20 17 Wheel 2 | . . 15 Device 6 | . 7 . Storage 15 | . 14 20 Ballistic Gun 19 | . 21 8 Naked Turns . | . . . Heaviest Build 63 | 15 50 63 Greatest Support 40 | 40 40 20 Greatest Overweight (x) 19 | . 2 19 Average Overweight (x) 1 | . 1 3 Largest Inventory Capacity 20 | 8 20 20 Average Capacity 18 | 7 19 20 Most Carried 11 | 7 11 11 Average Carried 9 | 4 9 9 Final Capacity 20 | 8 20 20 Final Carried 11 | 7 11 8 Class Distribution -------------------- 100% | Mutant Dominant Class ---------------- Mutant | -10/Materials Mutant | -9/Materials Resources | -11 -10 -9 ----------- Run | Scr Mat Mat Matter Collected 610 | 287 256 67 Remotely . | . . . Salvage Created 889 | 124 552 213 Parts 55 | 10 31 14 Haulers Intercepted 3 | . 2 1 Recyclers Shooed 3 | 1 2 . Parts Field Recycled . | . . . Retrieved Matter . | . . . Parts Self-Destructed . | . . . Prevented . | . . . Kills | -11 -10 -9 ------- Run | Scr Mat Mat Combat Hostiles Destroyed 17 | . 12 5 Guns 13 | . 12 1 AOE 4 | . . 4 Classes Destroyed 9 | 3 4 2 Worker 3 | 1 1 1 Builder 2 | . . 2 Tunneler 2 | 2 . . Hauler 3 | . 2 1 Recycler 2 | 1 1 . Watcher 1 | . 1 . Swarmer 5 | . 5 . Grunt 9 | . 7 2 Sentry 3 | . . 3 Best Kill Streak 8 | 3 7 8 Combat Bots Only 7 | . 7 4 Max Kills in Single Turn 4 | 1 1 4 Gunslinging . | . . . Exploded 2 | . . 2 Melee . | . . . Uniques/NPCs Destroyed . | . . . Combat | -11 -10 -9 -------- Run | Scr Mat Mat Damage Taken 1974 | . 1054 920 Core 628 | . 218 410 Absorbed by Shields . | . . . Core Remaining (%) 56 | 100 12 . Volleys Fired 90 | 8 73 9 Largest 2 | 2 2 1 Hottest 40 | 40 40 30 Shots Fired 136 | 15 112 9 Gun 133 | 15 112 6 Cannon . | . . . Launcher 3 | . . 3 Special . | . . . Kinetic 133 | 15 112 6 Thermal . | . . . Explosive 3 | . . 3 Electromagnetic . | . . . Robot Hit Streak 9 | 6 9 8 Robot Miss Streak 6 | 1 6 1 Penetration Max . | . . . Secondary Targets 5 | . 5 . Max Gunslinging Chain 1 | . 1 . Shots Hit Robots 86 | 9 69 8 Core Hits 46 | 5 28 13 Critical Kills . | . . . Critical Parts Destroyed 1 | . 1 . Critical Strikes 1 | . 1 . Destroy 1 | . 1 . Melee Attacks . | . . . Impact . | . . . Slashing . | . . . Piercing . | . . . Sneak Attacks . | . . . Combat Hostiles . | . . . Follow-up Attacks . | . . . Damage Inflicted 1818 | 113 924 781 Guns 1113 | 113 924 76 Cannons . | . . . Explosions 705 | . . 705 Melee . | . . . Ramming . | . . . Kinetic 1113 | 113 924 76 Thermal 50 | . . 50 Explosive 655 | . . 655 Electromagnetic . | . . . Impact . | . . . Slashing . | . . . Piercing . | . . . Highest Corruption . | . . . Average Corruption . | . . . Corruption Purged . | . . . Overload Shots . | . . . Overflow Damage 45 | . . 45 Projectiles . | . . . Explosions 45 | . . 45 Melee . | . . . Knockbacks . | . . . Impact . | . . . Kinetic . | . . . Secondary . | . . . Self-Inflicted Damage 162 | . . 162 Shots 4 | . . 4 Rammed . | . . . Targets Rammed . | . . . Kicked . | . . . Crushed . | . . . Highest Temperature 12 | . 12 2 Average Temperature 5 | . 5 2 Received Heat Transfer 681 | . 390 291 Siege Activations . | . . . Robots Corrupted . | . . . Combat Hostiles . | . . . Parts Fried . | . . . Impact Corruptions . | . . . Robots Melted . | . . . Combat Hostiles . | . . . Parts Melted . | . . . Heat Transferred 50 | . . 50 Parts Sabotaged . | . . . Parts Stolen . | . . . Parts Stripped . | . . . Power Chain Reactions . | . . . Missiles Intercepted . | . . . Alert | -11 -10 -9 ------- Run | Scr Mat Mat Peak Influence 231 | 20 231 172 Initial 13 | . 13 . Average 60 | 8 71 41 Maximum Alert Level 1 | . 1 . Low Security (%) 93 | 100 91 100 Level 1 6 | . 8 . Level 2 . | . . . Level 3 . | . . . Level 4 . | . . . Level 5 . | . . . High Security . | . . . Max Security . | . . . Squads Dispatched 2 | . 2 . Investigation 1 | . 1 . Extermination . | . . . Reinforcement 1 | . 1 . Assault . | . . . Garrison . | . . . Intercept . | . . . Construction Impeded . | . . . Haulers Reinforced . | . . . Active Scanning Responses . | . . . Cargo Convoy Interrupts . | . . . Stealth | -11 -10 -9 --------- Run | Scr Mat Mat Distress Signals 3 | . 2 1 Communications Jammed . | . . . Distress Signals . | . . . Times Spotted 35 | . 27 8 Peak Tracking Total 9 | . 8 9 Tactical Retreats 1 | . . 1 Traps | -11 -10 -9 ------- Run | Scr Mat Mat Traps Triggered . | . . . Indirectly . | . . . Trap Hack Attempts . | . . . Triggered . | . . . Disarmed . | . . . Reprogrammed . | . . . Reused . | . . . Traps Extracted . | . . . Installed . | . . . Triggered . | . . . Machines | -11 -10 -9 ---------- Run | Scr Mat Mat Machines Disabled 3 | . . 3 Max in Single Turn 2 | . . 2 Machines Sabotaged . | . . . Garrisons Compromised . | . . . Overloaded Fab Kills . | . . . Fab Network Shutdowns . | . . . Hacking | -11 -10 -9 --------- Run | Scr Mat Mat Machines Accessed 3 | . 2 1 Terminals 3 | . 2 1 Fabricators . | . . . Repair Stations . | . . . Recycling Units . | . . . Scanalyzers . | . . . Garrison Access . | . . . Total Hacks 9 | . 7 2 Successful 4 | . 3 1 Failed 5 | . 4 1 Catastrophic . | . . . Database Lockouts . | . . . Manual 6 | . 4 2 Terminals 9 | . 7 2 Fabricators . | . . . Repair Stations . | . . . Recycling Units . | . . . Scanalyzers . | . . . Garrison Access . | . . . Terminal Hacks 4 | . 3 1 Part Schematic 1 | . 1 . Robot Schematic 1 | . . 1 Level Access Points 1 | . 1 . Zone Layout 1 | . 1 . Fabricator Hacks . | . . . Repair Station Hacks . | . . . Recycling Unit Hacks . | . . . Scanalyzer . | . . . Garrison Access Hacks . | . . . Unauthorized Hacks . | . . . Terminals . | . . . Fabricators . | . . . Repair Stations . | . . . Recycling Units . | . . . Scanalyzers . | . . . Garrison Access . | . . . Data Cores Recovered . | . . . Used . | . . . Hacking Detections 3 | . 2 1 Full Trace Events 1 | . 1 . Feedback Events . | . . . Feedback Blocked . | . . . Robot Schematics Acquired 1 | . . 1 Robots Built . | . . . Matter . | . . . Time . | . . . Total Robot Build Rating . | . . . Part Schematics Acquired 1 | . 1 . Parts Built . | . . . Matter . | . . . Time . | . . . Total Part Build Rating . | . . . Parts Repaired . | . . . Time . | . . . Parts Recycled . | . . . Recycled Matter . | . . . Retrieved Matter . | . . . Retrieved Components . | . . . Parts Scanalyzed . | . . . Part Schematics Acquired . | . . . Parts Damaged . | . . . Bothacking | -11 -10 -9 ------------ Run | Scr Mat Mat Used RIF Installer . | . . . Robots Hacked . | . . . Non-combat . | . . . Combat . | . . . Robot Hacks Applied . | . . . Relay Couplers Released . | . . . Robots Rewired . | . . . Allies Hacked . | . . . Hacks Repelled . | . . . Allies | -11 -10 -9 -------- Run | Scr Mat Mat Total Allies . | . . . Largest Group . | . . . Highest-Rated Group . | . . . Highest-Rated Ally . | . . . Total Orders . | . . . Ally Attacks . | . . . Total Damage . | . . . Kills . | . . . Allies Corrupted . | . . . Allies Melted . | . . . Intel | -11 -10 -9 ------- Run | Scr Mat Mat Robot Analysis Total . | . . . Derelict Logs Recovered . | . . . Drone Launches . | . . . Drone Recoveries . | . . . Exploration | -11 -10 -9 ------------- Run | Scr Mat Mat Turns Passed 1415 | 154 1063 198 Spaces Moved 418 | 75 235 108 Core 8 | 5 . 3 Treads 153 | 70 83 . Legs 158 | . 152 6 Wheels 99 | . . 99 Hover . | . . . Flight . | . . . Fastest Speed 50 | 50 160 110 Average Speed 219 | 152 269 157 Slowest Speed 1000 | 160 280 1000 Overloaded Moves . | . . . Propulsion Burnouts . | . . . Robots Hopped . | . . . Cave-ins Triggered . | . . . Exploration Rate (%) 21 | 5 41 18 Regions Visited 2 Branch Regions . Pre-discovered Areas . | . . . Known Exits Taken 1 | . 1 . Unknown Exits Taken 1 | 1 . . Scrap Searched . | . . . Spaces Dug . | . . . Terrain Destroyed 70 | . . 70 Melee . | . . . Projectile . | . . . AOE 70 | . . 70 Terrain Rammed . | . . . Walls Destroyed . | . . . Machines Disabled . | . . . Actions | -11 -10 -9 --------- Run | Scr Mat Mat Total 783 | 96 553 134 Wait 248 | . 236 12 Move 416 | 74 234 108 Hop . | . . . Pick Up 13 | 7 6 . Fast Attach 9 | 7 . 2 Attach 6 | . 3 3 Detach . | . . . Swap 1 | . 1 . Drop . | . . . Fire 90 | 8 73 9 Melee . | . . . Ram . | . . . Kick . | . . . Crush . | . . . Escape Stasis . | . . . Rewire . | . . . Trap . | . . . Miscellaneous . | . . . Route ------- -11/Scrapyard -10/Materials (discovered 3 exits: *Mat x3) -9/Materials History --------- Turn | Location | Event 3 | -11/Scrapyard | Discovered new exit (range 15) 155 | -11/Scrapyard | Entered Materials 303 | -10/Materials | Build established: Mutant 486 | -10/Materials | Destroyed 7 combat bots 490 | -10/Materials | Lost 4 parts (1p2n1w) 691 | -10/Materials | Identified exit to Materials 708 | -10/Materials | Core integrity fell below 50% 756 | -10/Materials | Core integrity fell below 20% 1218 | -10/Materials | Entered another Materials area 1218 | -9/Materials | Evolved 2 slots: Propulsion x2 1391 | -9/Materials | Core integrity fell below 50% 1399 | -9/Materials | Core integrity fell below 20% 1416 | -9/Materials | Destroyed by Y-45 Defender with Beam Rifle Last Messages --------------- 01390_ A-02 Transporter destroyed. 01391_ K-01 Serf collects debris. 01392_ G-34 Mercenary destroyed. 01392_ Grenade Launcher destroyed. 01392_ Destroyed Grenade Launcher. 01392_ Y-45 Defender destroyed. 01393_ K-01 Serf collects debris. 01396_ The unstable cave ceiling collapses. 01397_ K-01 Serf collects debris. 01398_ Fusion Modulator explodes. 01398_ K-01 Serf destroyed. 01398_ K-01 Serf collects debris. 01403_ The unstable cave ceiling collapses. 01404_ 1 Matter crushed. 01408_ R-06 Scavenger collects Wheel. 01409_ K-01 Serf collects debris. 01412_ R-06 Scavenger collects Welding Torch. 01413_ The unstable cave ceiling collapses. 01413_ K-01 Serf collects debris. 01414_ Acquired 7 matter. Map ----- +----------------------------------------------------+ | ?????????????????????????????????????????????# | | ?????????????????????????????????????????????# ### | | ????????????????????????????????#####?#??????# #?? | | ????????????????????????????? ? ???????# #?? | | ???????????????????????????? ? T ???????# #?? | | ????????????????????????????? ????????# #?? | | ????????????????????????????? ]????????# #?? | | ????????????????????????????# ?????????# #?? | | ????????????????????????????? """ ?????????# #?? | | ??????????????????????????????""" ??????????# #?? | | ???????????????????????????????"" ??????????# #?? | | ???????????????????????????????##+############ #?? | | ???????????????????????????????# #?? | | ????????????????# ??#"????##### #############?? | | ????????????????# ??#"????+ #?????????????? | | ????????????????# ?# ???#####k #?????????????? | | ???????????????## #? ???#### ##????????????? | | ???????????????# ##+#### #????????????? | | ???????????????# "" t [%[ #????????????? | | ???????????????+ T [[ +????????????? | | ???????????????# #????????????? | | ???????????????# # # #????????????? | | ???????????????###+### r Y ## ##????????????? | | ???????????????# %[ ###???????????? | | ???????????????# [ #????????? | | ???????????????# =@ #????????? | | ???????????????# # = #????????? | | ???????????????# !#;;;;; #????????? | | ???????????????# # #= ; #????????? | | ???????????????# ?# " #????????? | | ???????????????# ??## ; +????????? | | ???????????????# ?????# " ?????????? | | ???????????????#??????# "## ?????????? | | ??????????????????????#### ; #??????????? | | ?????????????????????????### ;;;;;;;##??????????? | | ????????????????????????????;;;;;; ????????????? | | ???????????????????????????? ####????????????? | | ???????????????????????????? #???????????????? | | ???????????????????????????? ????????????????? | | ????????????????????????????? ???????????????????? | | ?????????????????????????????????????????????????? | | ?????????????????????????????????????????????????? | | ?????????????????????????????????????????????????? | | ?????????????????????????????????????????????????? | | ?????????????????????????????????????????????????? | | ?????????????????????????????????????????????????? | | ?????????????????????????????????????????????????? | | ?????????????????????????????????????????????????? | | ?????????????????????????????????????????????????? | | ?????????????????????????????????????????????????? | +----------------------------------------------------+ Best States ------------- Heat Dissipation 28 Energy Generation 10 Energy Capacity 250 Matter Stores 300 Matter Capacity 300 Sight Range 16 Terrain Scan Range 16 Terrain Scan Density 10 Evasion (%) 40 Recoil Reduction 2 Item Schematics ----------------- Med. Storage Unit | -10/Materials | Hacked Robot Schematics ------------------ O-16 Technician | -9/Materials | Hacked Fabricated ------------ Nothing Alien Tech Used ----------------- None Achievements -------------- None Challenges ------------ None Game ------ Seed BombDerelictTerrabomb Manual? 0 Play Time 00:08:33 Cumulative 419.1 hours Start 2021.10.02 @ 03:11:19 End 2021.10.02 @ 03:22:14 Sessions 1 Manual Loads 0 Difficulty Rogue Special Mode None Game No. 406 Rogue 191 Adventurer 112 Explorer 103 Win Type - Total 29 Types 21/0/5/2/0/0/0/1/0 Lore% 84 Gallery% 90 Achievement% 77 Wizard Run 0 Options --------- ASCII 0 Keyboard 0 Movement Numpad Keybinds 0 Fullscreen 2 Font 18/TerminusBold Map View 76x50 Tactical HUD 1 Map Filters NONE Filters NONE Steam 1 RUN: cb94a19f-afd1-4a81-903e-7d65eae8f02e